fUSD/lending_fUSD_20250611
["ID","MTS","AMOUNT","RATE_DAILY","PERIOD"]
[365354167,1749617434140,-490.0,0.00016438,2]
[365354169,1749617434149,-490.0,0.00016438,2]
[365354171,1749617434159,-490.0,0.00016438,2]
[365354173,1749617434168,-490.0,0.00016438,2]
[365354175,1749617434177,-490.0,0.00016438,2]
[365354177,1749617434187,-490.0,0.00016438,2]
[365354179,1749617434196,-490.0,0.00016438,2]
[365354181,1749617434205,-468.16089025,0.00016438,2]
[365354183,1749617434214,-463.34981449,0.00016438,2]
[365354185,1749617434223,-490.0,0.00016438,2]
[365354187,1749617434233,-490.0,0.00016438,2]
[365354189,1749617434243,-631.62029151,0.00016438,2]
[365354191,1749617434252,-490.0,0.00016438,2]
[365354193,1749617434262,-491.22482846,0.00016438,2]
[365354195,1749617434273,-490.0,0.00016438,2]
[365354197,1749617434283,-490.0,0.00016438,2]
[365354199,1749617434292,-495.5845006,0.00016438,2]
[365354201,1749617434302,-490.0,0.00016438,2]
[365354203,1749617434312,-490.0,0.00016438,2]
[365354205,1749617434322,-490.0,0.00016438,2]
[365354207,1749617434332,-490.0,0.00016438,2]
[365354209,1749617434342,-490.0,0.00016438,2]
[365354211,1749617434352,-460.0,0.00016438,2]
[365354213,1749617434363,-464.69534746,0.00016438,2]
[365354215,1749617434373,-490.0,0.00016438,2]
[365354217,1749617434383,-490.0,0.00016438,2]
[365354219,1749617434393,-463.39287058,0.00016438,2]
[365354221,1749617434403,-519.85786617,0.00016438,2]
[365354223,1749617434412,-380.23327397,0.00016438,2]
[365354225,1749617434422,-490.0,0.00016438,2]
[365354227,1749617434432,-463.23700328,0.00016438,2]
[365354228,1749617434443,-288.37365815,0.00016438,2]
[365354229,1749617434477,-201.62634185,0.00016438,2]
[365354230,1749617434487,-460.0,0.00016438,2]
[365354231,1749617434497,-603.80765424,0.00016438,2]
[365354232,1749617434507,-490.0,0.00016438,2]
[365354233,1749617434518,-225.51040079,0.00016438,2]
[365354234,1749617434529,-490.0,0.00016438,2]
[365354235,1749617434539,-342.06959246,0.00016438,2]
[365354236,1749617434551,-147.93040754,0.00016438,2]
[365354237,1749617434561,-490.0,0.00016438,2]
[365354238,1749617434571,-71.16387818,0.00016438,2]
[365354239,1749617434582,-418.83612182,0.00016438,2]
[365354241,1749617434592,-437.04959765,0.00016438,2]
[365354243,1749617434604,-52.95040235,0.00016438,2]
[365354245,1749617434614,-461.28121119,0.00016438,2]
[365354247,1749617434625,-490.0,0.00016438,2]
[365354249,1749617434635,-63.85000178,0.00016438,2]
[365354552,1749617437656,-396.14999822,0.00016438,2]
[365354554,1749617437665,-490.0,0.00016438,2]
[365354556,1749617437674,-490.0,0.00016438,2]
[365354558,1749617437683,-562.33765772,0.00016438,2]
[365354560,1749617437692,-460.0,0.00016438,2]
[365354562,1749617437702,-460.0,0.00016438,2]
[365354564,1749617437711,-628.08823994,0.00016438,2]
[365354566,1749617437721,-460.0,0.00016438,2]
[365354568,1749617437730,-490.0,0.00016438,2]
[365354570,1749617437740,-630.49093483,0.00016438,2]
[365354572,1749617437749,-463.04738266,0.00016438,2]
[365354574,1749617437759,-490.0,0.00016438,2]
[365354576,1749617437769,-463.02584359,0.00016438,2]
[365354578,1749617437778,-490.0,0.00016438,2]
[365354580,1749617437787,-463.07430501,0.00016438,2]
[365354582,1749617437796,-465.87718287,0.00016438,2]
[365354584,1749617437808,-490.0,0.00016438,2]
[365354586,1749617437818,-460.0,0.00016438,2]
[365354588,1749617437827,-490.0,0.00016438,2]
[365354589,1749617437836,-490.0,0.00016438,2]
[365354591,1749617437847,-490.0,0.00016438,2]
[365354593,1749617437856,-177.85893089,0.00016438,2]
[365354596,1749617437865,-585.99461287,0.00016438,2]
[365354597,1749617437875,-400.02702553,0.00016438,2]
[365354600,1749617437886,-465.60728367,0.00016438,2]
[365354601,1749617437896,-490.0,0.00016438,2]
[365354603,1749617437906,-490.0,0.00016438,2]
[365354605,1749617437915,-490.0,0.00016438,2]
[365354607,1749617437924,-490.0,0.00016438,2]
[365354609,1749617437933,-463.64603829,0.00016438,2]
[365354611,1749617437942,-490.0,0.00016438,2]
[365354613,1749617437952,-490.0,0.00016438,2]
[365354615,1749617437962,-490.0,0.00016438,2]
[365354617,1749617437972,-490.0,0.00016438,2]
[365354620,1749617437982,-460.0,0.00016438,2]
[365354622,1749617437992,-490.0,0.00016438,2]
[365354623,1749617438003,-490.0,0.00016438,2]
[365354625,1749617438012,-339.40081159,0.00016438,2]
[365354627,1749617438024,-490.0,0.00016438,2]
[365354629,1749617438034,-151.89654967,0.00016438,2]
[365354631,1749617438044,-490.0,0.00016438,2]
[365354633,1749617438053,-490.0,0.00016438,2]
[365354636,1749617438063,-490.0,0.00016438,2]
[365354639,1749617438073,-462.9977614,0.00016438,2]
[365354641,1749617438082,-467.88149472,0.00016438,2]
[365354645,1749617438092,-490.0,0.00016438,2]
[365354647,1749617438102,-460.0,0.00016438,2]
[365354651,1749617438118,-490.0,0.00016438,2]
[365354652,1749617438133,-396.51352015,0.00016438,2]
[365354654,1749617438149,-490.0,0.00016438,2]
[365354656,1749617438163,-166.80192125,0.00016438,2]
[365354658,1749617438172,-490.0,0.00016438,2]
[365354660,1749617438181,-490.0,0.00016438,2]
[365354662,1749617438191,-490.0,0.00016438,2]
[365354664,1749617438200,-490.0,0.00016438,2]
[365354666,1749617438210,-490.0,0.00016438,2]
[365354668,1749617438220,-490.0,0.00016438,2]
[365354670,1749617438229,-490.0,0.00016438,2]
[365354672,1749617438239,-460.0,0.00016438,2]
[365354674,1749617438251,-490.0,0.00016438,2]
[365354677,1749617438266,-490.0,0.00016438,2]
[365354681,1749617438281,-460.0,0.00016438,2]
[365354683,1749617438291,-490.0,0.00016438,2]
[365354685,1749617438301,-490.0,0.00016438,2]
[365354687,1749617438311,-490.0,0.00016438,2]
[365354689,1749617438322,-490.0,0.00016438,2]
[365354692,1749617438332,-490.0,0.00016438,2]
[365354694,1749617438343,-490.0,0.00016438,2]
[365354696,1749617438355,-490.0,0.00016438,2]
[365354698,1749617438365,-490.0,0.00016438,2]
[365354700,1749617438374,-463.08390358,0.00016438,2]
[365354701,1749617438384,-490.0,0.00016438,2]
[365354704,1749617438393,-490.0,0.00016438,2]
[365354706,1749617438403,-490.0,0.00016438,2]
[365354708,1749617438412,-490.0,0.00016438,2]
[365354709,1749617438422,-490.0,0.00016438,2]
[365354711,1749617438431,-490.0,0.00016438,2]
[365354713,1749617438441,-490.0,0.00016438,2]
[365354715,1749617438450,-490.0,0.00016438,2]
[365354717,1749617438459,-463.52695177,0.00016438,2]
[365354719,1749617438469,-490.0,0.00016438,2]
[365354721,1749617438478,-490.0,0.00016438,2]
[365354723,1749617438487,-490.0,0.00016438,2]
[365354725,1749617438497,-490.0,0.00016438,2]
[365354727,1749617438509,-490.0,0.00016438,2]
[365354729,1749617438520,-490.0,0.00016438,2]
[365354731,1749617438530,-490.0,0.00016438,2]
[365354733,1749617438539,-490.0,0.00016438,2]
[365354735,1749617438549,-490.0,0.00016438,2]
[365354738,1749617438558,-490.0,0.00016438,2]
[365354740,1749617438567,-424.65583225,0.00016438,2]
[365354742,1749617438577,-490.0,0.00016438,2]
[365354744,1749617438586,-490.0,0.00016438,2]
[365354746,1749617438596,-490.0,0.00016438,2]
[365354748,1749617438605,-490.0,0.00016438,2]
[365354750,1749617438614,-490.0,0.00016438,2]
[365354752,1749617438623,-490.0,0.00016438,2]
[365354754,1749617438632,-490.0,0.00016438,2]
[365354756,1749617438641,-461.72716721,0.00016438,2]
[365354758,1749617438651,-490.0,0.00016438,2]
[365354760,1749617438660,-490.0,0.00016438,2]
[365354762,1749617438669,-490.0,0.00016438,2]
[365354764,1749617438679,-462.2983526,0.00016438,2]
[365354766,1749617438688,-490.0,0.00016438,2]
[365354768,1749617438698,-490.0,0.00016438,2]
[365354770,1749617438707,-490.0,0.00016438,2]
[365354772,1749617438716,-490.0,0.00016438,2]
[365354774,1749617438725,-490.0,0.00016438,2]
[365354776,1749617438734,-490.0,0.00016438,2]
[365354778,1749617438742,-490.0,0.00016438,2]
[365354780,1749617438751,-490.0,0.00016438,2]
[365354782,1749617438758,-490.0,0.00016438,2]
[365354784,1749617438770,-490.0,0.00016438,2]
[365354786,1749617438779,-490.0,0.00016438,2]
[365354788,1749617438790,-490.0,0.00016438,2]
[365354790,1749617438799,-490.0,0.00016438,2]
[365354792,1749617438812,-490.0,0.00016438,2]
[365354794,1749617438821,-490.0,0.00016438,2]
[365354796,1749617438831,-490.0,0.00016438,2]
[365354798,1749617438840,-490.0,0.00016438,2]
[365354800,1749617438851,-490.0,0.00016438,2]
[365354802,1749617438860,-490.0,0.00016438,2]
[365354804,1749617438869,-522.92812997,0.00016438,2]
[365354806,1749617438879,-490.0,0.00016438,2]
[365354808,1749617438888,-360.0,0.00016438,2]
[365354810,1749617438896,-462.00324658,0.00016438,2]
[365354812,1749617438905,-490.0,0.00016438,2]
[365354813,1749617438914,-490.0,0.00016438,2]
[365354815,1749617438923,-490.0,0.00016438,2]
[365354817,1749617438932,-490.0,0.00016438,2]
[365354819,1749617438941,-490.0,0.00016438,2]
[365354821,1749617438951,-490.0,0.00016438,2]
[365354823,1749617438960,-490.0,0.00016438,2]
[365354825,1749617438970,-490.0,0.00016438,2]
[365354828,1749617438979,-490.0,0.00016438,2]
[365354829,1749617438988,-490.0,0.00016438,2]
[365354832,1749617438998,-462.42523463,0.00016438,2]
[365354834,1749617439007,-462.90199339,0.00016438,2]
[365354836,1749617439016,-490.0,0.00016438,2]
[365354837,1749617439026,-460.0,0.00016438,2]
[365354839,1749617439035,-490.0,0.00016438,2]
[365354842,1749617439045,-490.0,0.00016438,2]
[365354844,1749617439054,-490.0,0.00016438,2]
[365354846,1749617439063,-490.0,0.00016438,2]
[365354847,1749617439073,-490.0,0.00016438,2]
[365354850,1749617439082,-490.0,0.00016438,2]
[365354851,1749617439091,-490.0,0.00016438,2]
[365354853,1749617439100,-490.0,0.00016438,2]
[365354856,1749617439110,-490.0,0.00016438,2]
[365354858,1749617439119,-490.0,0.00016438,2]
[365354860,1749617439128,-490.0,0.00016438,2]
[365354862,1749617439137,-490.0,0.00016438,2]
[365354863,1749617439145,-490.0,0.00016438,2]
[365354866,1749617439155,-538.54862485,0.00016438,2]
[365354868,1749617439164,-490.0,0.00016438,2]
[365354870,1749617439174,-490.0,0.00016438,2]
[365354872,1749617439183,-464.31929729,0.00016438,2]
[365354874,1749617439192,-490.0,0.00016438,2]
[365354876,1749617439201,-490.0,0.00016438,2]
[365354878,1749617439210,-490.0,0.00016438,2]
[365354879,1749617439219,-490.0,0.00016438,2]
[365354882,1749617439229,-490.0,0.00016438,2]
[365354884,1749617439239,-490.0,0.00016438,2]
[365354886,1749617439248,-384.46537426,0.00016438,2]
[365354888,1749617439257,-631.74513701,0.00016438,2]
[365354890,1749617439267,-490.0,0.00016438,2]
[365354892,1749617439279,-490.0,0.00016438,2]
[365354894,1749617439288,-490.0,0.00016438,2]
[365354895,1749617439298,-490.0,0.00016438,2]
[365354896,1749617439308,-480.0,0.00016438,2]
[365354897,1749617439318,-490.0,0.00016438,2]
[365354898,1749617439327,-490.0,0.00016438,2]
[365354899,1749617439337,-490.0,0.00016438,2]
[365354900,1749617439346,-490.0,0.00016438,2]
[365354901,1749617439356,-306.01003803,0.00016438,2]
[365354902,1749617439365,-490.0,0.00016438,2]
[365354903,1749617439374,-490.0,0.00016438,2]
[365354905,1749617439384,-300.0,0.00016438,2]
[365354906,1749617439393,-490.0,0.00016438,2]
[365354908,1749617439402,-462.7849618,0.00016438,2]
[365354910,1749617439412,-467.25747564,0.00016438,2]
[365354912,1749617439421,-484.71691972,0.00016438,2]
[365354914,1749617439430,-490.0,0.00016438,2]
[365354916,1749617439440,-293.23630056,0.00016438,2]
[365354919,1749617439449,-490.0,0.00016438,2]
[365354922,1749617439458,-462.68084827,0.00016438,2]
[365354925,1749617439468,-490.0,0.00016438,2]
[365354928,1749617439477,-490.0,0.00016438,2]
[365354931,1749617439487,-490.0,0.00016438,2]
[365354934,1749617439496,-490.0,0.00016438,2]
[365354936,1749617439506,-490.0,0.00016438,2]
[365354938,1749617439515,-490.0,0.00016438,2]
[365354940,1749617439526,-490.0,0.00016438,2]
[365354942,1749617439536,-480.0,0.00016438,2]
[365354944,1749617439546,-467.01910263,0.00016438,2]
[365354946,1749617439556,-490.0,0.00016438,2]
[365354948,1749617439566,-172.70742563,0.00016438,2]
[365354951,1749617439576,-490.0,0.00016438,2]
[365354953,1749617439586,-463.26776949,0.00016438,2]
[365354954,1749617439596,-362.14782421,0.00016438,2]
[365354957,1749617439607,-490.0,0.00016438,2]
[365354958,1749617439616,-490.0,0.00016438,2]
[365354961,1749617439626,-518.98955117,0.00016438,2]
[365354963,1749617439636,-490.0,0.00016438,2]
[365354965,1749617439645,-465.855792,0.00016438,2]
[365354967,1749617439655,-490.0,0.00016438,2]
[365354969,1749617439664,-463.70217943,0.00016438,2]
[365354970,1749617439673,-482.03878507,0.00016438,2]
[365354972,1749617439682,-461.43897711,0.00016438,2]
[365354974,1749617439692,-490.0,0.00016438,2]
[365354976,1749617439701,-490.0,0.00016438,2]
[365354979,1749617439711,-490.0,0.00016438,2]
[365354981,1749617439720,-348.27138094,0.00016438,2]
[365354983,1749617439729,-462.73365393,0.00016438,2]
[365354984,1749617439738,-490.0,0.00016438,2]
[365354986,1749617439748,-490.0,0.00016438,2]
[365354988,1749617439757,-545.01,0.00016438,2]
[365354991,1749617439767,-480.0,0.00016438,2]
[365354992,1749617439778,-464.71826834,0.00016438,2]
[365354994,1749617439788,-490.0,0.00016438,2]
[365354997,1749617439799,-490.0,0.00016438,2]
[365354999,1749617439810,-490.0,0.00016438,2]
[365355001,1749617439820,-490.0,0.00016438,2]
[365355002,1749617439829,-466.83764621,0.00016438,2]
[365355004,1749617439838,-490.0,0.00016438,2]
[365355006,1749617439847,-490.0,0.00016438,2]
[365355008,1749617439857,-490.0,0.00016438,2]
[365355010,1749617439866,-490.0,0.00016438,2]
[365355012,1749617439875,-490.0,0.00016438,2]
[365355014,1749617439885,-490.0,0.00016438,2]
[365355016,1749617439894,-463.74425946,0.00016438,2]
[365355019,1749617439903,-490.0,0.00016438,2]
[365355020,1749617439913,-490.0,0.00016438,2]
[365355023,1749617439923,-490.0,0.00016438,2]
[365355025,1749617439931,-46.0763217,0.00016438,2]
[365355029,1749617439959,-443.9236783,0.00016438,2]
[365355031,1749617439968,-433.10075309,0.00016438,2]
[365355033,1749617439980,-56.89924691,0.00016438,2]
[365355035,1749617439989,-490.0,0.00016438,2]
[365355037,1749617439998,-490.0,0.00016438,2]
[365355039,1749617440007,-460.365065,0.00016438,2]
[365355040,1749617440016,-490.0,0.00016438,2]
[365355043,1749617440026,-490.0,0.00016438,2]
[365355045,1749617440035,-462.78803775,0.00016438,2]
[365355046,1749617440045,-490.0,0.00016438,2]
[365355049,1749617440054,-467.41951299,0.00016438,2]
[365355050,1749617440064,-417.79844567,0.00016438,2]
[365355054,1749617440085,-72.20155433,0.00016438,2]
[365355055,1749617440094,-490.0,0.00016438,2]
[365355058,1749617440104,-438.79096089,0.00016438,2]
[365355060,1749617440115,-51.20903911,0.00016438,2]
[365355062,1749617440125,-490.0,0.00016438,2]
[365355064,1749617440134,-490.0,0.00016438,2]
[365355066,1749617440143,-465.43215541,0.00016438,2]
[365355068,1749617440152,-483.14440833,0.00016438,2]
[365355070,1749617440162,-490.0,0.00016438,2]
[365355072,1749617440171,-509.89437969,0.00016438,2]
[365355074,1749617440180,-481.61714493,0.00016438,2]
[365355076,1749617440190,-490.0,0.00016438,2]
[365355078,1749617440199,-461.91676143,0.00016438,2]
[365355080,1749617440208,-490.0,0.00016438,2]
[365355082,1749617440217,-490.0,0.00016438,2]
[365355084,1749617440227,-170.76750322,0.00016438,2]
[365355086,1749617440236,-224.52993282,0.00016438,2]
[365355088,1749617440245,-490.0,0.00016438,2]
[365355090,1749617440255,-490.0,0.00016438,2]
[365355091,1749617440263,-529.2358466,0.00016438,2]
[365355093,1749617440272,-490.0,0.00016438,2]
[365355095,1749617440281,-480.0,0.00016438,2]
[365355097,1749617440290,-423.6769377,0.00016438,2]
[365355099,1749617440300,-490.0,0.00016438,2]
[365355101,1749617440309,-490.0,0.00016438,2]
[365355103,1749617440318,-490.0,0.00016438,2]
[365355105,1749617440328,-459.20242188,0.00016438,2]
[365355107,1749617440337,-460.84111646,0.00016438,2]
[365355109,1749617440346,-490.0,0.00016438,2]
[365355111,1749617440355,-628.62378849,0.00016438,2]
[365355113,1749617440364,-460.0,0.00016438,2]
[365355115,1749617440374,-490.0,0.00016438,2]
[365355117,1749617440383,-490.0,0.00016438,2]
[365355119,1749617440393,-490.0,0.00016438,2]
[365355121,1749617440402,-490.0,0.00016438,2]
[365355123,1749617440411,-490.0,0.00016438,2]
[365355125,1749617440420,-490.0,0.00016438,2]
[365355127,1749617440429,-490.0,0.00016438,2]
[365355129,1749617440439,-405.8624951,0.00016438,2]
[365355131,1749617440448,-490.0,0.00016438,2]
[365355133,1749617440457,-490.0,0.00016438,2]
[365355135,1749617440467,-490.0,0.00016438,2]
[365355137,1749617440476,-490.0,0.00016438,2]
[365355139,1749617440485,-490.0,0.00016438,2]
[365355141,1749617440494,-490.0,0.00016438,2]
[365355143,1749617440503,-463.64052069,0.00016438,2]
[365355145,1749617440513,-490.0,0.00016438,2]
[365355147,1749617440522,-490.0,0.00016438,2]
[365355149,1749617440532,-469.32018841,0.00016438,2]
[365355151,1749617440542,-490.0,0.00016438,2]
[365355153,1749617440552,-490.0,0.00016438,2]
[365355155,1749617440561,-490.0,0.00016438,2]
[365355157,1749617440570,-490.0,0.00016438,2]
[365355159,1749617440580,-490.0,0.00016438,2]
[365355161,1749617440589,-490.0,0.00016438,2]
[365355163,1749617440598,-446.64279035,0.00016438,2]
[365355165,1749617440607,-528.10866872,0.00016438,2]
[365355167,1749617440617,-490.0,0.00016438,2]
[365355169,1749617440626,-490.0,0.00016438,2]
[365355171,1749617440635,-465.87466722,0.00016438,2]
[365355173,1749617440645,-490.0,0.00016438,2]
[365355175,1749617440655,-490.0,0.00016438,2]
[365355177,1749617440664,-490.0,0.00016438,2]
[365355179,1749617440673,-490.0,0.00016438,2]
[365355181,1749617440683,-490.0,0.00016438,2]
[365355183,1749617440692,-466.1523939,0.00016438,2]
[365355185,1749617440701,-490.0,0.00016438,2]
[365355187,1749617440711,-462.80471985,0.00016438,2]
[365355189,1749617440720,-490.0,0.00016438,2]
[365355191,1749617440728,-490.0,0.00016438,2]
[365355193,1749617440738,-420.0,0.00016438,2]
[365355195,1749617440747,-470.63507001,0.00016438,2]
[365355197,1749617440756,-490.0,0.00016438,2]
[365355199,1749617440765,-460.0,0.00016438,2]
[365355201,1749617440776,-490.0,0.00016438,2]
[365355203,1749617440786,-490.0,0.00016438,2]
[365355205,1749617440795,-473.33161236,0.00016438,2]
[365355207,1749617440806,-633.86542084,0.00016438,2]
[365355209,1749617440816,-490.0,0.00016438,2]
[365355211,1749617440825,-184.74369521,0.00016438,2]
[365355213,1749617440835,-490.0,0.00016438,2]
[365355215,1749617440844,-560.74672803,0.00016438,2]
[365355217,1749617440853,-430.55441879,0.00016438,2]
[365355219,1749617440862,-490.0,0.00016438,2]
[365355221,1749617440871,-490.0,0.00016438,2]
[365355223,1749617440884,-490.0,0.00016438,2]
[365355225,1749617440893,-490.0,0.00016438,2]
[365355227,1749617440902,-467.60221659,0.00016438,2]
[365355229,1749617440911,-380.0,0.00016438,2]
[365355231,1749617440920,-462.37375586,0.00016438,2]
[365355233,1749617440929,-490.0,0.00016438,2]
[365355235,1749617440938,-463.37608306,0.00016438,2]
[365355237,1749617440947,-490.0,0.00016438,2]
[365355239,1749617440956,-593.89196739,0.00016438,2]
[365355241,1749617440965,-468.3517578,0.00016438,2]
[365355242,1749617440974,-490.0,0.00016438,2]
[365355244,1749617440983,-466.58510509,0.00016438,2]
[365355246,1749617440992,-490.0,0.00016438,2]
[365355248,1749617441002,-490.0,0.00016438,2]
[365355250,1749617441010,-420.71808368,0.00016438,2]
[365355253,1749617441029,-69.28191632,0.00016438,2]
[365355255,1749617441038,-230.63937342,0.00016438,2]
[365355257,1749617441047,-490.0,0.00016438,2]
[365355259,1749617441056,-490.0,0.00016438,2]
[365355261,1749617441065,-460.0,0.00016438,2]
[365355263,1749617441075,-490.0,0.00016438,2]
[365355265,1749617441084,-630.2419937,0.00016438,2]
[365355268,1749617441093,-490.0,0.00016438,2]
[365355270,1749617441102,-476.21037043,0.00016438,2]
[365355272,1749617441112,-460.0,0.00016438,2]
[365355274,1749617441121,-490.0,0.00016438,2]
[365355276,1749617441131,-490.0,0.00016438,2]
[365355278,1749617441140,-426.33332292,0.00016438,2]
[365355279,1749617441150,-490.0,0.00016438,2]
[365355281,1749617441159,-490.0,0.00016438,2]
[365355284,1749617441169,-468.62076219,0.00016438,2]
[365355286,1749617441178,-490.0,0.00016438,2]
[365355288,1749617441188,-327.05757316,0.00016438,2]
[365355290,1749617441197,-490.0,0.00016438,2]
[365355292,1749617441207,-500.0,0.00016438,2]
[365355294,1749617441216,-490.0,0.00016438,2]
[365355296,1749617441225,-460.0,0.00016438,2]
[365355298,1749617441235,-464.59859734,0.00016438,2]
[365355300,1749617441244,-490.0,0.00016438,2]
[365355302,1749617441253,-490.0,0.00016438,2]
[365355304,1749617441262,-460.94366592,0.00016438,2]
[365355306,1749617441271,-383.13069651,0.00016438,2]
[365355308,1749617441280,-460.0,0.00016438,2]
[365355310,1749617441289,-313.62459686,0.00016438,2]
[365355311,1749617441299,-490.0,0.00016438,2]
[365355313,1749617441308,-490.0,0.00016438,2]
[365355315,1749617441317,-490.0,0.00016438,2]
[365355317,1749617441326,-388.66566402,0.00016438,2]
[365355319,1749617441335,-461.42224674,0.00016438,2]
[365355321,1749617441345,-505.78822404,0.00016438,2]
[365355323,1749617441355,-490.0,0.00016438,2]
[365355325,1749617441364,-142.46466671,0.00016438,2]
[365355326,1749617441382,-347.53533329,0.00016438,2]
[365355327,1749617441392,-63.85962633,0.00016438,2]
[365355328,1749617441403,-426.14037367,0.00016438,2]
[365355329,1749617441412,-293.99825329,0.00016438,2]
[365355330,1749617441424,-196.00174671,0.00016438,2]
[365355331,1749617441433,-490.0,0.00016438,2]
[365355332,1749617441442,-464.98331689,0.00016438,2]
[365355333,1749617441452,-464.58996284,0.00016438,2]
[365355349,1749617441632,-597.06212671,0.00016438,2]
[365355351,1749617441642,-91.83584208,0.00016438,2]
[365355368,1749617441794,-562.60269621,0.00016437,2]
[365355370,1749617441805,-414.58724109,0.00016437,2]
[365355372,1749617441818,-401.14292246,0.00016437,2]
[365355374,1749617441828,-372.32132804,0.00016438,2]
[365355376,1749617441837,-490.0,0.00016438,2]
[365355378,1749617441847,-460.0,0.00016438,2]
[365355380,1749617441857,-490.0,0.00016438,2]
[365355382,1749617441867,-490.0,0.00016438,2]
[365355384,1749617441877,-490.0,0.00016438,2]
[365355386,1749617441888,-490.0,0.00016438,2]
[365355388,1749617441897,-490.0,0.00016438,2]
[365355390,1749617441907,-259.55024223,0.00016438,2]
[365355392,1749617441916,-490.0,0.00016438,2]
[365355394,1749617441926,-490.0,0.00016438,2]
[365355396,1749617441935,-490.0,0.00016438,2]
[365355398,1749617441945,-490.0,0.00016438,2]
[365355400,1749617441954,-490.0,0.00016438,2]
[365355402,1749617441963,-160.10430315,0.00016438,2]
[365355404,1749617441972,-462.23054232,0.00016438,2]
[365355406,1749617441981,-490.0,0.00016438,2]
[365355408,1749617441990,-490.0,0.00016438,2]
[365355410,1749617441999,-460.0,0.00016438,2]
[365355412,1749617442009,-490.0,0.00016438,2]
[365355414,1749617442018,-461.55579527,0.00016438,2]
[365355416,1749617442028,-490.0,0.00016438,2]
[365355418,1749617442038,-463.90585485,0.00016438,2]
[365355420,1749617442047,-490.0,0.00016438,2]
[365355422,1749617442056,-460.0,0.00016438,2]
[365355424,1749617442065,-490.0,0.00016438,2]
[365355425,1749617442074,-467.6079859,0.00016438,2]
[365355427,1749617442082,-470.35781617,0.00016438,2]
[365355429,1749617442090,-490.0,0.00016438,2]
[365355431,1749617442099,-460.0,0.00016438,2]
[365355434,1749617442109,-490.0,0.00016438,2]
[365355436,1749617442118,-465.32053426,0.00016438,2]
[365355438,1749617442126,-490.0,0.00016438,2]
[365355440,1749617442136,-490.0,0.00016438,2]
[365355441,1749617442145,-490.0,0.00016438,2]
[365355444,1749617442154,-490.0,0.00016438,2]
[365355446,1749617442164,-490.0,0.00016438,2]
[365355448,1749617442173,-467.25294614,0.00016438,2]
[365355450,1749617442183,-461.87066179,0.00016438,2]
[365355452,1749617442192,-490.0,0.00016438,2]
[365355453,1749617442201,-490.0,0.00016438,2]
[365355456,1749617442212,-490.0,0.00016438,2]
[365355458,1749617442221,-459.43126242,0.00016438,2]
[365355460,1749617442230,-490.0,0.00016438,2]
[365355462,1749617442240,-511.53381865,0.00016438,2]
[365355464,1749617442249,-466.55491096,0.00016438,2]
[365355466,1749617442258,-490.0,0.00016438,2]
[365355468,1749617442266,-460.0,0.00016438,2]
[365355469,1749617442276,-490.0,0.00016438,2]
[365355471,1749617442285,-490.0,0.00016438,2]
[365355474,1749617442295,-469.00904753,0.00016438,2]
[365355476,1749617442304,-490.0,0.00016438,2]
[365355478,1749617442314,-490.0,0.00016438,2]
[365355480,1749617442323,-473.6412808,0.00016438,2]
[365355482,1749617442332,-466.10858395,0.00016438,2]